[Event "ECo-C Extraliga 2023-24"]
[Site "Slovakia"]
[Date "2024.02.25"]
[Round "8.2"]
[White "Laurusas, Tomas"]
[Black "Ftacnik, Lubomir"]
[Result "1/2-1/2"]
[ECO "D85"]
[WhiteElo "2590"]
[BlackElo "2438"]
[Annotator "TA"]
[PlyCount "124"]
[EventDate "2023.10.06"]
[EventType "team-tourn"]
[EventCountry "SVK"]
[SourceTitle "playchess.com"]
[Source "ChessBase"]
[SourceQuality "1"]
[TimeControl "40/5400+30:1800+30"]

{[%evp 40,124,-13,-40,-33,-38,-45,-30,-33,-32,-10,-83,-78,-167,-166,-184,-192,-295,-280,-259,-239,-358,-240,-243,-243,-237,-235,-275,-226,-225,-234,-523,-533,-530,-511,-606,-652,-419,-623,-619,-632,-619,-662,-659,-656,-647,-623,-629,-535,-536,-134,-127,-120,-121,-122,-152,-143,-143,-143,-143,-143,-143,-143,-143,-74,-74,-74,-74,-74,-118,-74,-74,-67,-67,-67,-67,-67,-127,-127,-127,-102,-102,-67,-67,-67,-67,-67]} 1. d4 {[%emt 0:00:18]} Nf6 {[%emt 0:00:08]} 2. c4 {[%emt 0:00:06]} g6 {[%emt 0:00:08]} 3. Nc3 {[%emt 0:00:13]} d5 {[%emt 0:00:11]} 4. cxd5 {[%emt 0:05:07]} Nxd5 {[%emt 0:00:12]} 5. e4 {[%emt 0:00:27]} Nxc3 {[%emt 0:00:11]} 6. bxc3 {[%emt 0:00:05]} Bg7 {[%emt 0:00:26]} 7. Qa4+ {[%emt 0:00:11]} Nd7 {[%emt 0:04:50]} 8. Bg5 {[%emt 0:04:23] D85: Exchange Grünfeld: Unusual White 7th moves and lines with 7 Nf3.} O-O {[%emt 0:01:01]} 9. Rd1 {[%emt 0:00:09]} c5 {[%emt 0:03:21]} 10. Qa3 {[%emt 0:00:32]} Qc7 {[%emt 0:01:56]} 11. Nf3 {[%emt 0:05:21]} b6 {[%emt 0:01:50]} 12. Bd3 {[%emt 0:15:12]} e5 $146 {[%emt 0:04:27]} ({Predecessor:} 12... Bb7 13. O-O e6 14. Rfe1 a6 15. e5 Rfc8 16. Nd2 {½-½ Groth,K (2389)-Yloenen,O (2444) EU-ch69 sf07 email 2012}) 13. d5 {[%emt 0:01:34]} Nf6 {[%emt 0:01:02]} 14. c4 {[%emt 0:12:48]} Ne8 {[%emt 0:04:27]} 15. Nd2 {[%emt 0:04:56]} Nd6 {[%emt 0:01:56]} 16. O-O {[%emt 0:00:13]} Bd7 {[%emt 0:06:52]} 17. Qb3 {[%emt 0:11:04]} f6 {[%emt 0:09:46]} 18. Bh4 {[%emt 0:02:27]} Bh6 {[%emt 0:02:33]} 19. Rfe1 {[%emt 0:03:40]} Qc8 {[%emt 0:11:54]} 20. Nb1 {[%emt 0:08:17]} b5 {[%emt 0:29:21]} 21. cxb5 {[%emt 0:01:20]} c4 {[%emt 0:00:21]} 22. Qb4 {[%emt 0:00:04]} Qc7 {[%emt 0:00:32]} 23. Bf1 {[%emt 0:00:41]} Bxb5 {[%emt 0:01:28]} 24. f3 {[%emt 0:07:07]} Rab8 {[%emt 0:00:33]} 25. Bf2 {[%emt 0:06:33]} (25. Qa3 $11) 25... Rfc8 $1 $17 {[%emt 0:00:47]} 26. Nc3 {[%emt 0:04:14]} (26. Be3 $17 a5 27. Qd2 Bxe3+ 28. Rxe3) 26... Bf8 $1 $19 {[%emt 0:00:22]} 27. Nxb5 {[%emt 0:03:33]} Nxb5 {[%emt 0:03:42]} 28. Qd2 {[%emt 0:00:44]} (28. d6 $142 Bxd6 (28... Nxd6 $2 29. Qa4 $19) 29. Qa4) 28... Nd4 $19 {[%emt 0:02:29]} 29. Rc1 {[%emt 0:01:49]} Bb4 {[%emt 0:00:34]} 30. Qd1 {[%emt 0:01:04]} (30. Qe3 $142 Bxe1 31. Bxe1) 30... Bxe1 {[%emt 0:01:14]} 31. Bxe1 {[%emt 0:00:02]} Qb6 $1 {[%emt 0:00:30]} 32. Kh1 {[%emt 0:00:08]} Qa6 {[%emt 0:01:11]} 33. f4 {[%emt 0:00:37]} Qxa2 {[%emt 0:00:40]} 34. fxe5 {[%emt 0:00:06]} fxe5 {[%emt 0:00:21]} 35. Bg3 $2 {[%emt 0:00:07]} (35. d6 c3 36. Bxc3) 35... c3 $19 {[%emt 0:03:02]} 36. Bxe5 {[%emt 0:02:02]} Qd2 $1 {[%emt 0:00:27]} (36... Nb3 37. Bxb8 Nxc1 38. Qg4 $11) 37. Bxd4 {[%emt 0:01:08]} Qxd1 {[%emt 0:00:07]} 38. Rxd1 {[%emt 0:00:03]} c2 {[%emt 0:00:08]} 39. Rc1 {[%emt 0:00:06]} Rb1 {[%emt 0:00:06]} 40. Be3 {[%emt 0:00:08]} Rxc1 {[%emt 0:02:09]} 41. Bxc1 {[%emt 0:30:07]} Rb8 {[%emt 0:30:52]} 42. Kg1 {[%emt 0:00:00]} Rb1 {[%emt 0:00:00]} 43. Bg5 {[%emt 0:00:00]} a5 {[%emt 0:00:00]} 44. Kf2 {[%emt 0:00:00]} a4 $2 {[%emt 0:00:00]} (44... c1=B $2 45. Bd8 $17) (44... Kf7 $19 {is more deadly. White must now prevent ...a4.} 45. e5 c1=Q (45... c1=B $2 46. e6+ Ke8 47. Bf6 $19) 46. Bxc1 Rxc1) 45. d6 $17 {[%emt 0:00:00]} c1=Q {[%emt 0:00:00]} (45... c1=B $6 46. Bf6 Bb2 47. Bc4+ Kf8 48. Be7+ Ke8 (48... Kg7 $2 49. d7 $18) 49. Bb5+ Kf7 50. Bc4+ (50. Bxa4 Be5 $17) 50... Ke8 (50... Kg7 $2 51. d7 $18) 51. Bb5+ Kf7 52. Bc4+ (52. Bxa4 Be5 $17) 52... Ke8 $11 (52... Kg7 $2 53. d7 $18)) 46. Bxc1 {[%emt 0:00:00]} Rxc1 {[%emt 0:00:00]} 47. Bb5 {[%emt 0:00:00]} a3 {[%emt 0:00:10]} 48. d7 {[%emt 0:00:00]} Rd1 {[%emt 0:00:05]} 49. Ba4 {[%emt 0:00:00]} Rd4 {[%emt 0:00:52]} 50. Ke3 {[%emt 0:00:00] [#]} a2 $1 {[%emt 0:00:07]} ({Stronger than} 50... Rxa4 51. d8=Q+ (51. d8=B $2 {perishes.} Kf7 $19) 51... Kg7 52. Qd7+ Kf8 53. Qxa4 Ke7 54. Qxa3+ Kf7 55. e5) 51. Bb3+ {[%emt 0:00:00] [#]} Kf8 {[%emt 0:00:22]} (51... Kg7 $142 $1 52. Bd5 a1=Q (52... a1=B $2 {is the wrong capture.} 53. d8=Q $18)) 52. Bxa2 $17 {[%emt 0:00:00]} Rxd7 {[%emt 0:00:30]} 53. h4 {[%emt 0:00:00]} Ke7 {[%emt 0:00:00]} 54. Bd5 {[%emt 0:00:00]} Kf6 {[%emt 0:01:17]} 55. Kf4 {[%emt 0:00:00]} h6 {[%emt 0:00:49]} 56. g3 {[%emt 0:01:39]} Ra7 {[%emt 0:00:37]} 57. Bc6 {[%emt 0:01:20]} Ra1 {[%emt 0:01:25]} 58. Be8 {[%emt 0:01:16]} (58. e5+ $15 Ke6 59. Be8) 58... Rf1+ $17 {[%emt 0:00:30]} 59. Ke3 {[%emt 0:00:40]} g5 {[%emt 0:00:19]} 60. hxg5+ {[%emt 0:00:11]} hxg5 {[%emt 0:00:25]} 61. Ke2 {[%emt 0:00:07]} Ra1 {[%emt 0:00:29]} 62. Kf3 {[%emt 0:00:03]} Ra3+ {[%emt 0:01:18]} 1/2-1/2

[Event "ECo-C Extraliga 2023-24"]
[Site "Slovakia"]
[Date "2024.02.25"]
[Round "8.2"]
[White "Simacek, Pavel"]
[Black "Mihok, Oliver"]
[Result "1/2-1/2"]
[ECO "E81"]
[WhiteElo "2456"]
[BlackElo "2535"]
[Annotator "TA"]
[PlyCount "29"]
[EventDate "2023.10.06"]
[EventType "team-tourn"]
[EventCountry "SVK"]
[SourceTitle "playchess.com"]
[Source "ChessBase"]
[SourceQuality "1"]
[TimeControl "40/5400+30:1800+30"]

{[%evp 12,29,32,39,40,50,44,38,35,41,59,61,65,0,37,0,69,0,36,0]} 1. d4 {[%emt 0:00:05]} Nf6 {[%emt 0:00:06]} 2. c4 {[%emt 0:00:06]} g6 {[%emt 0:00:04]} 3. Nc3 {[%emt 0:00:07]} Bg7 {[%emt 0:00:03]} 4. e4 {[%emt 0:00:06]} d6 {[%emt 0:00:03]} 5. f3 {[%emt 0:00:23]} O-O {[%emt 0:00:45]} 6. Be3 {[%emt 0:00:09]} a6 {[%emt 0:00:22]} 7. Qd2 {[%emt 0:01:27]} c5 {[%emt 0:02:18]} 8. dxc5 {[%emt 0:01:49]} dxc5 {[%emt 0:00:06]} 9. Qxd8 {[%emt 0:00:07]} Rxd8 {[%emt 0:00:02]} 10. Bxc5 {[%emt 0:00:06]} Nc6 {[%emt 0:00:31]} 11. Bb6 {[%emt 0:00:44]} Rd6 {[%emt 0:05:04]} 12. Bc5 {[%emt 0:00:06] Wards off Nb4} Rd8 {[%emt 0:00:34]} 13. Bb6 {[%emt 0:00:35]} Rd6 {[%emt 0:01:51]} 14. Bc5 {[%emt 0:00:18] Inhibits Nb4.} Rd8 {[%emt 0:00:30]} 15. Bb6 {Weighted Error Value: White=0.20 (precise) /Black=0.00 (flawless) .  Inaccurate:     	White=3     	---        OK:         	White=4     	Black=5} 1/2-1/2

[Event "ECo-C Extraliga 2023-24"]
[Site "Slovakia"]
[Date "2024.02.25"]
[Round "8.2"]
[White "Cernousek, Lukas"]
[Black "Jakab, Bela"]
[Result "0-1"]
[ECO "C18"]
[WhiteElo "2447"]
[BlackElo "2346"]
[Annotator "TA"]
[PlyCount "34"]
[EventDate "2023.10.06"]
[EventType "team-tourn"]
[EventCountry "SVK"]
[SourceTitle "playchess.com"]
[Source "ChessBase"]
[SourceQuality "1"]
[TimeControl "40/5400+30:1800+30"]

{[%evp 28,34,26,19,19,15,34,-371,-377]} 1. e4 {[%emt 0:00:06]} e6 {[%emt 0:00:04]} 2. d4 {[%emt 0:00:07]} d5 {[%emt 0:00:04]} 3. Nc3 {[%emt 0:00:07]} Bb4 {[%emt 0:00:06]} 4. e5 {[%emt 0:00:06]} Ne7 {[%emt 0:00:13]} 5. a3 {[%emt 0:00:07]} Bxc3+ {[%emt 0:00:04]} 6. bxc3 {[%emt 0:00:04]} c5 {[%emt 0:00:16]} 7. Qg4 {[%emt 0:00:07]} cxd4 {[%emt 0:00:52]} 8. Qxg7 {[%emt 0:00:44]} Rg8 {[%emt 0:00:09]} 9. Qxh7 {[%emt 0:00:12]} Qc7 {[%emt 0:00:12]} 10. Ne2 {[%emt 0:00:17]} Nbc6 {[%emt 0:00:23]} 11. f4 {[%emt 0:00:17]} dxc3 {[%emt 0:00:15]} 12. Qd3 {[%emt 0:00:05]} d4 {[%emt 0:00:16]} 13. Nxd4 {[%emt 0:00:16]} Nxd4 {[%emt 0:00:05]} 14. Qxd4 {[%emt 0:00:06]} Bd7 {[%emt 0:00:49]} 15. Rg1 {[%emt 0:01:02]} Nf5 {[%emt 0:00:30]} 16. Qf2 {[%emt 0:00:06]} Qc6 $1 {[%emt 0:00:42]} 17. Be3 $2 {[%emt 0:00:10][%mdl 8192] [#]} (17. Bd3 $14 {stays ahead.}) 17... Qe4 {[%emt 0:06:20] Weighted Error Value: White=1.56/Black=0.00 (flawless) .  Loses game:     	White=1     	---        OK:         	White=1     	---        Best:        	---       	Black=1      Strong:       	---       	Black=1} 0-1

[Event "ECo-C Extraliga 2023-24"]
[Site "Slovakia"]
[Date "2024.02.25"]
[Round "8.2"]
[White "Mazur, Stefan"]
[Black "Chlpik, Martin"]
[Result "1/2-1/2"]
[ECO "C02"]
[WhiteElo "2440"]
[BlackElo "2281"]
[Annotator "TA"]
[PlyCount "119"]
[EventDate "2023.10.06"]
[EventType "team-tourn"]
[EventCountry "SVK"]
[SourceTitle "playchess.com"]
[Source "ChessBase"]
[SourceQuality "1"]
[TimeControl "40/5400+30:1800+30"]

{[%evp 29,119,100,111,102,150,140,145,142,133,118,122,49,57,45,39,41,29,29,57,3,50,62,68,16,63,0,27,0,209,200,176,0,0,0,0,0,0,0,0,0,0,0,0,0,0,0,0,0,0,0,0,0,0,0,0,0,0,0,0,0,0,0,0,0,0,0,0,0,0,0,0,0,0,0,0,0,0,0,0,0,0,0,0,0,0,0,0,0,0,0,0,0]} 1. e4 {[%emt 0:03:12]} e6 {[%emt 0:00:05]} 2. d4 {[%emt 0:01:00]} d5 {[%emt 0:00:04]} 3. e5 {[%emt 0:03:08]} b6 {[%emt 0:01:06]} 4. Nf3 {[%emt 0:01:32]} Qd7 {[%emt 0:00:16]} 5. Be2 {[%emt 0:10:38]} Ba6 {[%emt 0:00:05]} 6. O-O {[%emt 0:00:18] C02: French: Advance Variation.} Ne7 {[%emt 0:01:39]} 7. Bxa6 {[%emt 0:01:47]} Nxa6 {[%emt 0:00:02]} 8. Qe2 {[%emt 0:00:09]} Nb8 {[%emt 0:00:10]} 9. Be3 {[%emt 0:01:02]} Nf5 {[%emt 0:03:25]} 10. c4 {[%emt 0:05:15]} Be7 $146 {[%emt 0:09:03]} ({Predecessor:} 10... c6 11. Bg5 h6 12. Be3 Qb7 13. Nc3 Bb4 14. Rac1 dxc4 15. Qxc4 Bxc3 16. Qxc3 O-O {0-1 Sanchez,H (800)-Roberts,E (1862) IECG CP.2009.P.00018 email}) 11. Nc3 {[%emt 0:03:51]} Nc6 {[%emt 0:03:24]} 12. Rac1 {[%emt 0:09:26]} O-O {[%emt 0:14:16]} 13. cxd5 {[%emt 0:03:57]} exd5 {[%emt 0:00:02]} 14. Qb5 Rad8 {[%emt 0:00:17]} 15. Nxd5 $1 {[%emt 0:13:29]} Bc5 {[%emt 0:15:47]} 16. Nxb6 $1 {[%emt 0:05:13]} cxb6 {[%emt 0:16:13]} (16... axb6 $142 17. dxc5 Nxe5 18. Qxd7 Nxf3+ 19. gxf3 Rxd7 20. cxb6 cxb6 21. Bxb6 Rb7) 17. dxc5 $16 {[%emt 0:00:16]} Nxe3 {[%emt 0:00:09]} 18. fxe3 {[%emt 0:00:26]} Nxe5 {[%emt 0:04:52]} 19. c6 {[%emt 0:20:39]} Nxf3+ {[%emt 0:00:10]} 20. gxf3 {[%emt 0:00:13]} (20. Rxf3 $16 Qd2 21. Rff1) 20... Qd2 $14 {[%emt 0:01:54]} 21. c7 {[%emt 0:05:17]} Qxe3+ {[%emt 0:00:41]} 22. Kh1 {[%emt 0:00:05]} Rc8 {[%emt 0:04:44]} 23. Qa6 {[%emt 0:00:12]} Qd2 {[%emt 0:06:18]} 24. Rfd1 {[%emt 0:01:08]} (24. Qxa7 $14 Qxb2 25. Qa6) 24... Qf4 {[%emt 0:00:35]} (24... Qf2 $1 $11 25. Rf1 (25. Qxa7 Qxf3+ 26. Kg1 Qe3+ 27. Kg2 Qe2+ 28. Kh1 Qxb2 $11) 25... Qxb2) 25. Qb7 $14 {[%emt 0:01:06]} g6 {[%emt 0:02:58]} 26. Rc3 {[%emt 0:00:36]} (26. Qxa7 Qxf3+ 27. Kg1 Ra8 28. Qxb6 Ra4 $19) ({Better is} 26. Re1 $14) 26... Qa4 {[%emt 0:04:03]} (26... Rfe8 $2 27. Qxc8 (27. Qxa7 Re2 28. Rd8+ Kg7) 27... Rxc8 28. Rd8+ Kg7 29. Rxc8 $18) (26... Qb4 $11 {should be considered.}) 27. Rcd3 {[%emt 0:03:00]} (27. Qd5 $14) 27... Qc2 {[%emt 0:03:53]} 28. Rd7 {[%emt 0:00:52]} Kg7 $2 {[%emt 0:01:09]} (28... h5 $11 {and Black is okay.}) 29. Qd5 $18 {[%emt 0:03:13]} (29. Qxa7 Qc6 30. Qa3 Rxc7 31. Rxc7 Qxc7 $17) 29... Qxb2 {[%emt 0:03:24]} 30. Rd8 $2 {[%emt 0:03:19]} (30. Kg1 $18) 30... Qf6 $11 {[%emt 0:00:11]} (30... Rxc7 $2 31. Rxf8 h5 32. Rd8 $18) 31. Rxf8 {[%emt 0:00:32]} Kxf8 {[%emt 0:01:23]} 32. Qd8+ {[%emt 0:00:49]} Kg7 {[%emt 0:00:06]} 33. Kg2 {[%emt 0:00:34]} Qe6 {[%emt 0:02:19]} 34. Rd7 {[%emt 0:00:35]} Qe2+ {[%emt 0:00:06]} 35. Kg3 {[%emt 0:00:15]} Qe1+ {[%emt 0:01:10]} 36. Kf4 {[%emt 0:00:33]} (36. Kg2 $5 Qe2+ $8 37. Kg3 $11) 36... Qc1+ {[%emt 0:00:07]} 37. Ke4 {[%emt 0:00:23]} Qc4+ {[%emt 0:00:33]} 38. Ke3 {[%emt 0:00:04]} Qc5+ {[%emt 0:01:15]} 39. Ke2 {[%emt 0:01:06]} Qc4+ {[%emt 0:00:55]} 40. Ke1 {[%emt 0:00:24]} Qc3+ {[%emt 0:01:02]} 41. Kf2 {[%emt 0:30:45]} Qb2+ {[%emt 0:06:08]} 42. Kf1 {[%emt 0:00:00]} Qc1+ {[%emt 0:10:00]} 43. Kg2 {[%emt 0:00:00]} Qb2+ {[%emt 0:00:08]} 44. Kf1 $1 {[%emt 0:00:00]} Qc1+ {[%emt 0:00:22]} 45. Ke2 {[%emt 0:00:00]} (45. Kg2 $5 Qb2+ $8 46. Kg1 (46. Kh3 Qf2 $11) 46... Qb1+ (46... Qc1+ 47. Kg2 $11) 47. Kg2 Qb2+ $11) 45... Qc2+ {[%emt 0:00:56]} 46. Ke3 {[%emt 0:00:00]} Qc3+ {[%emt 0:02:07]} 47. Kf4 {[%emt 0:00:00]} (47. Kf2 $5 Qb2+ $8 48. Kg1 Qc1+ 49. Kg2 Qb2+ 50. Kf1 $11 (50. Kh3 Qf2 $11)) 47... Qc1+ {[%emt 0:00:16]} 48. Ke5 {[%emt 0:00:00]} Qe3+ {[%emt 0:01:03]} 49. Kd5 {[%emt 0:00:00]} Qc5+ {[%emt 0:05:42]} 50. Ke4 {[%emt 0:00:00]} Qc4+ {[%emt 0:00:10]} 51. Ke3 {[%emt 0:00:00]} Qc1+ {[%emt 0:00:08]} 52. Kd3 {[%emt 0:00:00]} (52. Kf2 $5 Qb2+ $8 53. Kf1 $11) 52... Qa3+ {[%emt 0:02:17]} 53. Ke4 {[%emt 0:00:00]} Qb4+ {[%emt 0:00:11]} 54. Kd3 {[%emt 0:00:00]} Qa3+ {[%emt 0:00:16]} 55. Kc4 {[%emt 0:00:00]} Qc5+ {[%emt 0:01:07]} (55... Qxa2+ $2 {loses.} 56. Kb5 $18) 56. Kb3 {[%emt 0:00:00]} Qb5+ {[%emt 0:00:20]} 57. Kc2 {[%emt 0:00:00]} Qa4+ {[%emt 0:00:48]} 58. Kc3 {[%emt 0:00:00]} Qa3+ {[%emt 0:00:20]} 59. Kd4 {[%emt 0:00:00]} Qc5+ {[%emt 0:00:18]} 60. Kd3 {[%emt 0:01:27]} 1/2-1/2

[Event "ECo-C Extraliga 2023-24"]
[Site "Slovakia"]
[Date "2024.02.25"]
[Round "8.2"]
[White "Hrbek, Stepan"]
[Black "Bokros, Albert"]
[Result "1/2-1/2"]
[ECO "B40"]
[WhiteElo "2426"]
[BlackElo "2460"]
[Annotator "RC"]
[PlyCount "190"]
[EventDate "2023.10.06"]
[EventType "team-tourn"]
[EventCountry "SVK"]
[SourceTitle "playchess.com"]
[Source "ChessBase"]
[SourceQuality "1"]
[TimeControl "40/5400+30:1800+30"]

1. e4 {[%emt 0:00:03]} c5 {[%emt 0:00:13]} 2. Nf3 {[%emt 0:00:09]} e6 {[%emt 0:00:35]} 3. d4 {[%emt 0:00:10]} cxd4 {[%emt 0:00:05]} 4. Nxd4 {[%emt 0:00:05]} Nf6 {[%emt 0:00:38]} 5. Bd3 {[%emt 0:00:27]} Nc6 {[%emt 0:00:26]} 6. Nxc6 {[%emt 0:00:11]} dxc6 {[%emt 0:02:37]} 7. O-O {[%emt 0:01:04]} e5 {[%emt 0:00:22]} 8. Nd2 {[%emt 0:01:54]} Qc7 {[%emt 0:03:19]} 9. Nc4 {[%emt 0:05:26]} Be6 {[%emt 0:01:55]} 10. Qf3 {[%emt 0:08:54]} Be7 {[%emt 0:17:57]} 11. Qg3 {[%emt 0:11:46]} Bxc4 {[%emt 0:10:47]} 12. Bxc4 {[%emt 0:00:25]} O-O {[%emt 0:00:47]} 13. Bh6 {[%emt 0:01:53]} Ne8 {[%emt 0:01:02]} 14. a4 {[%emt 0:01:51]} Bc5 {[%emt 0:06:45]} 15. a5 {[%emt 0:11:42]} Rd8 {[%emt 0:06:48]} 16. Bg5 {[%emt 0:09:16]} Rd4 {[%emt 0:04:36]} 17. Ra4 {[%emt 0:03:21]} Rd7 {[%emt 0:02:11]} 18. b4 {[%emt 0:02:01]} Be7 {[%emt 0:02:27]} 19. Be3 {[%emt 0:08:11]} Nd6 {[%emt 0:01:59]} 20. Bd3 {[%emt 0:00:19]} Nb5 {[%emt 0:00:39]} 21. Bh6 {[%emt 0:05:27]} Bf6 {[%emt 0:02:34]} 22. Ra2 {[%emt 0:04:21]} Qd6 {[%emt 0:04:50]} 23. Rb2 {[%emt 0:01:30]} Qe6 {[%emt 0:02:24]} 24. h3 {[%emt 0:04:19]} a6 {[%emt 0:03:00]} 25. Be3 {[%emt 0:06:00]} Nd4 {[%emt 0:03:42]} 26. Qg4 {[%emt 0:00:28]} Rfd8 {[%emt 0:06:36]} 27. g3 {[%emt 0:01:13]} g6 {[%emt 0:03:44]} 28. Kg2 {[%emt 0:00:54]} h5 {[%emt 0:02:03]} 29. Qxe6 {[%emt 0:00:22]} Nxe6 {[%emt 0:00:08]} 30. h4 {[%emt 0:06:17]} Kg7 {[%emt 0:01:21]} 31. Rfb1 {[%emt 0:01:26]} Nd4 {[%emt 0:02:00]} 32. c4 {[%emt 0:01:40]} Be7 {[%emt 0:02:06]} 33. Bf1 {[%emt 0:00:38]} Ne6 {[%emt 0:00:19]} 34. Be2 {[%emt 0:02:34]} Nd4 {[%emt 0:00:30]} 35. Bf1 {[%emt 0:00:17]} Ne6 {[%emt 0:00:06]} 36. Kh2 {[%emt 0:00:43]} Rd1 {[%emt 0:02:40]} 37. Bb6 {[%emt 0:01:01]} R8d2 {[%emt 0:02:21]} 38. Bh3 {[%emt 0:00:12]} Kf6 {[%emt 0:02:05]} 39. Bxe6 {[%emt 0:00:54]} Kxe6 {[%emt 0:00:16]} 40. b5 {[%emt 0:00:34]} cxb5 {[%emt 0:00:49]} 41. cxb5 {[%emt 0:02:23]} Rxb1 {[%emt 0:04:14]} 42. Rxb1 {[%emt 0:02:03]} Ra2 {[%emt 0:00:44]} 43. bxa6 {[%emt 0:03:02]} bxa6 {[%emt 0:00:21]} 44. Rc1 {[%emt 0:00:07]} Bb4 {[%emt 0:12:38]} 45. Rc6+ {[%emt 0:00:35]} Kd7 {[%emt 0:00:27]} 46. Rc7+ {[%emt 0:00:10]} Ke6 {[%emt 0:00:06]} 47. Ra7 {[%emt 0:00:42]} Bc3 {[%emt 0:00:54]} 48. Rxa6 {[%emt 0:03:14]} Kd7 {[%emt 0:01:25]} 49. Ra7+ {[%emt 0:06:52]} Ke6 {[%emt 0:00:24]} 50. Ra6 {[%emt 0:12:08]} Kd7 {[%emt 0:00:19]} 51. Ra7+ {[%emt 0:00:03]} Ke6 {[%emt 0:00:06]} 52. Kg1 {[%emt 0:00:09]} Bd4 {[%emt 0:00:30]} 53. Bxd4 {[%emt 0:03:38]} exd4 {[%emt 0:00:06]} 54. Kg2 {[%emt 0:00:38]} d3 {[%emt 0:03:15]} 55. Kf3 {[%emt 0:00:02]} d2 {[%emt 0:00:09]} 56. Ke2 {[%emt 0:00:01]} d1=Q+ 57. Kxd1 {[%emt 0:00:03]} Rxf2 {[%emt 0:00:18]} 58. a6 {[%emt 0:00:04]} Ra2 {[%emt 0:00:50]} 59. Ra8 {[%emt 0:00:18]} Kf6 {[%emt 0:00:49]} 60. Kc1 {[%emt 0:01:52]} Ra4 {[%emt 0:01:37]} 61. a7 {[%emt 0:02:06]} Kg7 {[%emt 0:02:47]} 62. Kb2 {[%emt 0:00:05]} f6 {[%emt 0:02:23]} 63. Kb3 {[%emt 0:00:30]} Ra1 {[%emt 0:00:10]} 64. Kb2 {[%emt 0:00:04]} Ra4 {[%emt 0:00:07]} 65. Kb3 {[%emt 0:00:06]} Ra1 {[%emt 0:00:05]} 66. Kc2 {[%emt 0:00:54]} Ra3 {[%emt 0:00:18]} 67. Kd2 {[%emt 0:00:10]} Ra1 {[%emt 0:00:21]} 68. Ke3 {[%emt 0:00:05]} Ra2 {[%emt 0:00:14]} 69. Kd4 {[%emt 0:00:17]} Ra5 {[%emt 0:01:27]} 70. Kc4 {[%emt 0:00:06]} Ra1 {[%emt 0:00:35]} 71. Kd5 {[%emt 0:00:21]} Ra4 {[%emt 0:02:07]} 72. Kd6 {[%emt 0:00:17]} Ra6+ {[%emt 0:01:43]} 73. Ke7 {[%emt 0:00:36]} Ra1 {[%emt 0:00:24]} 74. Ke8 {[%emt 0:00:53]} Kg8 {[%emt 0:03:07]} 75. Kd8 {[%emt 0:00:36]} Kg7 {[%emt 0:00:54]} 76. Kd7 {[%emt 0:01:09]} Ra2 {[%emt 0:00:19]} 77. Kc6 {[%emt 0:00:05]} Rc2+ {[%emt 0:00:12]} 78. Kd6 {[%emt 0:00:15]} Ra2 {[%emt 0:00:13]} 79. Ke6 {[%emt 0:01:08]} Ra6+ {[%emt 0:00:22]} 80. Kd7 {[%emt 0:00:36]} Ra2 {[%emt 0:00:15]} 81. Kd8 {[%emt 0:00:20]} Ra1 {[%emt 0:00:36]} 82. Rc8 {[%emt 0:00:36]} Rxa7 {[%emt 0:00:09]} 83. Rc7+ {[%emt 0:00:09]} Rxc7 {[%emt 0:00:06]} 84. Kxc7 {[%emt 0:00:01]} g5 {[%emt 0:01:18]} 85. Kd6 {[%emt 0:01:48]} gxh4 {[%emt 0:00:18]} 86. gxh4 {[%emt 0:00:01]} f5 {[%emt 0:00:13]} 87. e5 {[%emt 0:00:15]} f4 {[%emt 0:00:16]} 88. e6 {[%emt 0:00:02]} f3 {[%emt 0:00:03]} 89. e7 {[%emt 0:00:03]} f2 {[%emt 0:00:04]} 90. e8=Q {[%emt 0:00:02]} f1=Q 91. Qxh5 {[%emt 0:00:31]} Qa6+ {[%emt 0:00:26]} 92. Kc7 {[%emt 0:00:09]} Qa7+ {[%emt 0:00:07]} 93. Kc6 {[%emt 0:00:05]} Qa6+ {[%emt 0:00:05]} 94. Kc7 {[%emt 0:00:03]} Qa7+ {[%emt 0:00:05]} 95. Kc6 {[%emt 0:00:03]} Qa6+ {[%emt 0:00:04]} 1/2-1/2